[Event "120th Taflfelag Reykjavik-A 2020"]
[Site "Reykjavik"]
[Date "2020.09.17"]
[Round "2.2"]
[White "Kjartansson, David"]
[Black "Gretarsson, Helgi Ass"]
[Result "1/2-1/2"]
[ECO "D10"]
[WhiteElo "2338"]
[BlackElo "2401"]
[Annotator "ChessBase"]
[PlyCount "53"]
[EventDate "2020.09.13"]
[EventType "tourn"]
[EventCountry "ISL"]
[SourceTitle "playchess.com"]
[Source "ChessBase"]
[SourceQuality "1"]
[TimeControl "40/5400+15:1800+30"]

1. d4 {[%emt 0:01:25]} d5 {[%emt 0:00:00]} 2. c4 {[%emt 0:01:02]} c6 {[%emt 0:00:00]} 3. cxd5 {[%emt 0:00:29]} cxd5 {[%emt 0:00:00]} 4. Nc3 {[%emt 0:00:17]} Nf6 {[%emt 0:00:27]} 5. Bf4 {[%emt 0:00:00]} Nc6 {[%emt 0:00:00]} 6. e3 {[%emt 0:00:00]} a6 {[%emt 0:00:00]} 7. Bd3 {[%emt 0:00:00]} Bg4 {[%emt 0:00:00]} 8. Nge2 {[%emt 0:00:48]} e6 {[%emt 0:03:07]} 9. O-O {[%emt 0:01:37]} Bd6 {[%emt 0:01:41]} 10. f3 {[%emt 0:01:10]} Bh5 {[%emt 0:00:00]} 11. Rc1 {[%emt 0:00:19]} Bg6 {[%emt 0:05:28]} 12. Na4 {[%emt 0:05:46]} O-O {[%emt 0:30:48]} 13. Nc5 {[%emt 0:01:18]} Bxf4 {[%emt 0:01:02]} 14. Nxf4 {[%emt 0:00:00]} Qb6 {[%emt 0:00:10]} 15. Bxg6 {[%emt 0:15:58]} hxg6 {[%emt 0:00:00]} 16. Nfd3 {[%emt 0:00:05]} Rfc8 {[%emt 0:01:28]} 17. Qb3 {[%emt 0:03:39]} Qxb3 {[%emt 0:01:52]} 18. Nxb3 {[%emt 0:02:17]} b6 {[%emt 0:25:51]} 19. Rc3 {[%emt 0:00:44]} Ne8 {[%emt 0:00:27]} 20. Rfc1 {[%emt 0:02:00]} Ne7 {[%emt 0:00:14]} 21. Ne5 {[%emt 0:03:36]} Rxc3 {[%emt 0:01:29]} 22. Rxc3 {[%emt 0:00:00]} Rc8 {[%emt 0:00:00]} 23. Rxc8 {[%emt 0:04:17]} Nxc8 {[%emt 0:00:00]} 24. Kf2 {[%emt 0:00:20]} g5 {[%emt 0:01:39]} 25. Nd2 {[%emt 0:03:11]} f6 {[%emt 0:03:45]} 26. Nd3 {[%emt 0:00:08]} Kf7 {[%emt 0:00:00]} 27. Nb1 {[%emt 0:00:01]} 1/2-1/2

[Event "120th Taflfelag Reykjavik-A 2020"]
[Site "Reykjavik"]
[Date "2020.09.24"]
[Round "5.2"]
[White "Kjartansson, Gudmundur"]
[Black "Einarsson, Halldor Gretar"]
[Result "1-0"]
[ECO "A16"]
[WhiteElo "2466"]
[BlackElo "2258"]
[Annotator "ChessBase"]
[PlyCount "57"]
[EventDate "2020.09.13"]
[EventType "tourn"]
[EventCountry "ISL"]
[SourceTitle "playchess.com"]
[Source "ChessBase"]
[SourceQuality "1"]
[TimeControl "40/5400+15:1800+30"]

1. c4 {[%emt 0:00:00]} Nf6 {[%emt 0:00:00]} 2. Nc3 {[%emt 0:00:00]} d5 {[%emt 0:01:42]} 3. cxd5 {[%emt 0:00:00]} Nxd5 {[%emt 0:00:00]} 4. g3 {[%emt 0:00:00]} g6 {[%emt 0:08:49]} 5. Bg2 {[%emt 0:00:00]} Nb6 {[%emt 0:01:52]} 6. d3 {[%emt 0:00:00]} Bg7 {[%emt 0:01:14]} 7. Be3 {[%emt 0:00:06]} N8d7 {[%emt 0:04:05]} 8. Qd2 {[%emt 0:02:49]} h5 {[%emt 0:05:14]} 9. Nf3 {[%emt 0:05:48]} Ne5 {[%emt 0:00:13]} 10. Nxe5 {[%emt 0:08:00]} Bxe5 {[%emt 0:00:00]} 11. Bf4 {[%emt 0:05:13]} Bxf4 {[%emt 0:08:39]} 12. Qxf4 {[%emt 0:00:41]} Qd6 {[%emt 0:00:00]} 13. Qg5 {[%emt 0:04:42]} c6 {[%emt 0:01:03]} 14. O-O {[%emt 0:01:55]} Bf5 {[%emt 0:06:35]} 15. a4 {[%emt 0:06:58]} h4 {[%emt 0:18:16]} 16. gxh4 {[%emt 0:08:44]} a5 {[%emt 0:04:47]} 17. e4 {[%emt 0:19:49]} Be6 {[%emt 0:00:30]} 18. Rfd1 {[%emt 0:04:15]} Rh5 {[%emt 0:05:53]} 19. Qg3 {[%emt 0:01:01]} O-O-O {[%emt 0:01:21]} 20. d4 {[%emt 0:03:06]} Bb3 {[%emt 0:04:47]} 21. e5 {[%emt 0:02:52]} Qb4 {[%emt 0:02:45]} 22. Rdc1 {[%emt 0:04:25]} Rxd4 {[%emt 0:05:18]} 23. Nb5 {[%emt 0:04:27]} Rf4 {[%emt 0:04:25]} 24. Qe3 {[%emt 0:04:35]} Rg4 {[%emt 0:03:11]} 25. f3 {[%emt 0:03:01]} Rxg2+ {[%emt 0:00:50]} 26. Kxg2 {[%emt 0:00:00]} Nd5 {[%emt 0:00:40]} 27. Qa7 {[%emt 0:00:20]} Qd2+ {[%emt 0:00:43]} 28. Kh1 {[%emt 0:00:00]} Nc7 {[%emt 0:01:08]} 29. Rxc6 {[%emt 0:00:01]} 1-0

[Event "120th Taflfelag Reykjavik-A 2020"]
[Site "Reykjavik"]
[Date "2020.09.24"]
[Round "5.3"]
[White "Gretarsson, Helgi Ass"]
[Black "Bjornsson, Sigurbjorn"]
[Result "1-0"]
[ECO "A11"]
[WhiteElo "2401"]
[BlackElo "2357"]
[Annotator "ChessBase"]
[PlyCount "41"]
[EventDate "2020.09.13"]
[EventType "tourn"]
[EventCountry "ISL"]
[SourceTitle "playchess.com"]
[Source "ChessBase"]
[SourceQuality "1"]
[TimeControl "40/5400+15:1800+30"]

1. Nf3 {[%emt 0:00:00]} Nf6 {[%emt 0:04:03]} 2. g3 {[%emt 0:00:00]} d5 {[%emt 0:00:06]} 3. Bg2 {[%emt 0:00:00]} Bg4 {[%emt 0:00:00]} 4. c4 {[%emt 0:00:54]} c6 {[%emt 0:00:00]} 5. Qb3 {[%emt 0:16:45]} Qb6 {[%emt 0:01:46]} 6. Nc3 {[%emt 0:09:49]} e6 {[%emt 0:02:33]} 7. d3 {[%emt 0:15:30]} Nbd7 {[%emt 0:03:12]} 8. cxd5 {[%emt 0:04:31]} Qxb3 {[%emt 0:02:59]} 9. axb3 {[%emt 0:00:00]} exd5 {[%emt 0:00:00]} 10. Nd4 {[%emt 0:02:15]} Bc5 {[%emt 0:03:36]} 11. Be3 {[%emt 0:00:00]} O-O {[%emt 0:04:20]} 12. h3 {[%emt 0:00:00]} Be6 {[%emt 0:00:25]} 13. g4 {[%emt 0:09:20]} h6 {[%emt 0:07:37]} 14. f4 {[%emt 0:01:04]} Rfe8 {[%emt 0:01:58]} 15. Bg1 {[%emt 0:01:46]} Nf8 {[%emt 0:01:37]} 16. f5 {[%emt 0:06:22]} Bd7 {[%emt 0:00:44]} 17. Nc2 {[%emt 0:00:42]} Bxg1 {[%emt 0:04:27]} 18. Rxg1 {[%emt 0:00:00]} g6 {[%emt 0:01:01]} 19. Kd2 {[%emt 0:00:37]} gxf5 {[%emt 0:11:41]} 20. gxf5 {[%emt 0:00:00]} Bxf5 {[%emt 0:00:37]} 21. Raf1 {[%emt 0:00:02]} 1-0

[Event "120th Taflfelag Reykjavik-A 2020"]
[Site "Reykjavik"]
[Date "2020.09.24"]
[Round "5.4"]
[White "Sigfusson, Sigurdur"]
[Black "Thorhallsson, Simon"]
[Result "1/2-1/2"]
[ECO "C11"]
[WhiteElo "2276"]
[BlackElo "2215"]
[Annotator "ChessBase"]
[PlyCount "133"]
[EventDate "2020.09.13"]
[EventType "tourn"]
[EventCountry "ISL"]
[SourceTitle "playchess.com"]
[Source "ChessBase"]
[SourceQuality "1"]
[TimeControl "40/5400+15:1800+30"]

1. e4 {[%emt 0:00:00]} e6 {[%emt 0:00:00]} 2. d4 {[%emt 0:00:00]} d5 {[%emt 0:00:00]} 3. Nc3 {[%emt 0:00:00]} Nf6 {[%emt 0:00:00]} 4. e5 {[%emt 0:01:51]} Nfd7 {[%emt 0:00:00]} 5. f4 {[%emt 0:00:00]} c5 {[%emt 0:00:00]} 6. Nf3 {[%emt 0:00:00]} Nc6 {[%emt 0:00:00]} 7. Be3 {[%emt 0:01:50]} Be7 {[%emt 0:00:00]} 8. Qd2 {[%emt 0:02:52]} O-O {[%emt 0:00:00]} 9. Be2 {[%emt 0:02:14]} f6 {[%emt 0:02:13]} 10. exf6 {[%emt 0:04:49]} Nxf6 {[%emt 0:14:07]} 11. dxc5 {[%emt 0:06:45]} Qa5 {[%emt 0:10:40]} 12. Nb5 {[%emt 0:15:06]} Qxd2+ {[%emt 0:04:06]} 13. Nxd2 {[%emt 0:00:00]} a6 {[%emt 0:00:44]} 14. Nd4 {[%emt 0:08:30]} Bxc5 {[%emt 0:03:23]} 15. N2b3 {[%emt 0:00:00]} Bd6 {[%emt 0:05:46]} 16. O-O {[%emt 0:02:45]} e5 {[%emt 0:04:38]} 17. fxe5 {[%emt 0:05:17]} Nxe5 {[%emt 0:03:25]} 18. Bf4 {[%emt 0:03:51]} Bd7 {[%emt 0:02:44]} 19. c3 {[%emt 0:04:48]} Rae8 {[%emt 0:01:08]} 20. Rad1 {[%emt 0:03:10]} h6 {[%emt 0:07:58]} 21. h3 {[%emt 0:01:49]} Nf7 {[%emt 0:03:26]} 22. Bxd6 {[%emt 0:06:12]} Nxd6 {[%emt 0:00:00]} 23. Nc5 {[%emt 0:00:10]} Bc8 {[%emt 0:00:41]} 24. Bd3 {[%emt 0:03:52]} Re7 {[%emt 0:05:01]} 25. Bg6 {[%emt 0:02:56]} Nfe4 {[%emt 0:05:54]} 26. Rxf8+ {[%emt 0:12:14]} Kxf8 {[%emt 0:00:00]} 27. Nxe4 {[%emt 0:00:00]} Nxe4 {[%emt 0:06:42]} 28. Nc2 {[%emt 0:02:21]} Nf6 {[%emt 0:00:59]} 29. Nb4 {[%emt 0:02:33]} Re5 {[%emt 0:00:28]} 30. c4 {[%emt 0:00:14]} Rg5 {[%emt 0:00:09]} 31. Nxd5 {[%emt 0:00:07]} Rxg6 {[%emt 0:03:41]} 32. Nf4 {[%emt 0:00:45]} Bf5 {[%emt 0:00:37]} 33. Nxg6+ {[%emt 0:00:00]} Bxg6 {[%emt 0:00:00]} 34. Kf2 {[%emt 0:00:00]} Ke7 {[%emt 0:00:21]} 35. Ke3 {[%emt 0:00:00]} Be4 {[%emt 0:00:50]} 36. Rd2 {[%emt 0:00:02]} Bc6 {[%emt 0:00:11]} 37. Kd4 {[%emt 0:00:04]} Ke6 {[%emt 0:01:12]} 38. b4 {[%emt 0:00:21]} Kf5 {[%emt 0:01:56]} 39. Rb2 {[%emt 0:00:27]} Kf4 {[%emt 0:04:42]} 40. b5 {[%emt 0:00:00]} axb5 {[%emt 0:00:00]} 41. cxb5 {[%emt 0:14:57]} Be8 {[%emt 0:21:40]} 42. Rb3 {[%emt 0:05:17]} h5 {[%emt 0:05:56]} 43. a4 {[%emt 0:01:49]} h4 {[%emt 0:01:56]} 44. Rf3+ {[%emt 0:06:30]} Kg5 {[%emt 0:00:02]} 45. Kc5 {[%emt 0:02:19]} Nd7+ {[%emt 0:02:15]} 46. Kb4 {[%emt 0:00:58]} Ne5 {[%emt 0:01:03]} 47. Rc3 {[%emt 0:01:11]} Bg6 {[%emt 0:00:56]} 48. Rc7 {[%emt 0:00:52]} Be4 {[%emt 0:00:05]} 49. Rxg7+ {[%emt 0:00:12]} Ng6 {[%emt 0:00:07]} 50. Kc5 {[%emt 0:00:54]} Bxg2 {[%emt 0:00:43]} 51. Kb6 {[%emt 0:00:03]} Bxh3 {[%emt 0:00:41]} 52. Rxb7 {[%emt 0:00:22]} Bg4 {[%emt 0:01:16]} 53. Rc7 {[%emt 0:01:13]} Nf4 {[%emt 0:01:07]} 54. Ka7 {[%emt 0:00:44]} h3 {[%emt 0:00:44]} 55. b6 {[%emt 0:00:26]} h2 {[%emt 0:00:33]} 56. Rc1 {[%emt 0:00:15]} Bf3 {[%emt 0:00:43]} 57. b7 {[%emt 0:00:47]} Bxb7 {[%emt 0:00:11]} 58. Kxb7 {[%emt 0:00:04]} Kg4 {[%emt 0:00:14]} 59. a5 {[%emt 0:00:51]} Nd3 {[%emt 0:00:19]} 60. Rb1 {[%emt 0:01:28]} Kf3 {[%emt 0:01:08]} 61. Kb6 {[%emt 0:00:15]} Nb4 {[%emt 0:00:30]} 62. Kb5 {[%emt 0:01:00]} Nd5 {[%emt 0:00:16]} 63. Kc5 {[%emt 0:00:23]} Nc7 {[%emt 0:00:27]} 64. Kc6 {[%emt 0:00:28]} Na6 {[%emt 0:00:16]} 65. Kb6 {[%emt 0:00:44]} Nb4 {[%emt 0:00:42]} 66. a6 {[%emt 0:00:18]} Nxa6 {[%emt 0:00:05]} 67. Kxa6 {[%emt 0:00:04]} 1/2-1/2

[Event "120th Taflfelag Reykjavik-A 2020"]
[Site "Reykjavik"]
[Date "2020.09.24"]
[Round "5.5"]
[White "Kjartansson, David"]
[Black "Stefansson, Vignir Vatnar"]
[Result "0-1"]
[ECO "B33"]
[WhiteElo "2338"]
[BlackElo "2301"]
[Annotator "ChessBase"]
[PlyCount "96"]
[EventDate "2020.09.13"]
[EventType "tourn"]
[EventCountry "ISL"]
[SourceTitle "playchess.com"]
[Source "ChessBase"]
[SourceQuality "1"]
[TimeControl "40/5400+15:1800+30"]

1. Nf3 {[%emt 0:02:27]} c5 {[%emt 0:00:00]} 2. e4 {[%emt 0:02:30]} Nc6 {[%emt 0:00:00]} 3. d4 {[%emt 0:07:39]} cxd4 {[%emt 0:00:00]} 4. Nxd4 {[%emt 0:00:00]} Nf6 {[%emt 0:00:00]} 5. Nc3 {[%emt 0:00:02]} e5 {[%emt 0:00:00]} 6. Nf5 {[%emt 0:06:33]} d5 {[%emt 0:00:20]} 7. Bg5 {[%emt 0:00:02]} d4 {[%emt 0:04:14]} 8. Bxf6 {[%emt 0:04:49]} gxf6 {[%emt 0:02:03]} 9. Nb1 {[%emt 0:06:13]} Bxf5 {[%emt 0:00:27]} 10. exf5 {[%emt 0:00:00]} Bb4+ {[%emt 0:10:26]} 11. Nd2 {[%emt 0:09:58]} Qd5 {[%emt 0:03:06]} 12. f3 {[%emt 0:01:28]} Rg8 {[%emt 0:03:25]} 13. Kf2 {[%emt 0:02:51]} d3 {[%emt 0:02:32]} 14. Bxd3 {[%emt 0:00:12]} Qd4+ {[%emt 0:00:05]} 15. Kf1 {[%emt 0:00:06]} Bxd2 {[%emt 0:00:34]} 16. Qxd2 {[%emt 0:00:12]} Qxb2 {[%emt 0:00:00]} 17. Rd1 {[%emt 0:05:46]} O-O-O {[%emt 0:00:00]} 18. g3 {[%emt 0:00:50]} Qxa2 {[%emt 0:06:30]} 19. Kg2 {[%emt 0:00:27]} Rd4 {[%emt 0:00:00]} 20. Qh6 {[%emt 0:03:09]} Rxd3 {[%emt 0:13:04]} 21. Rxd3 {[%emt 0:00:29]} Qxc2+ {[%emt 0:00:00]} 22. Qd2 {[%emt 0:04:50]} Qxd2+ {[%emt 0:00:13]} 23. Rxd2 {[%emt 0:00:00]} Nd4 {[%emt 0:00:00]} 24. Kf2 {[%emt 0:00:19]} Rd8 {[%emt 0:06:27]} 25. Rc1+ {[%emt 0:02:05]} Kb8 {[%emt 0:00:12]} 26. Re1 {[%emt 0:00:00]} Rd5 {[%emt 0:42:52]} 27. Re4 {[%emt 0:00:00]} b5 {[%emt 0:00:00]} 28. Rh4 {[%emt 0:00:45]} b4 {[%emt 0:00:00]} 29. Rxh7 {[%emt 0:00:00]} b3 {[%emt 0:00:00]} 30. Rxf7 {[%emt 0:02:08]} Rc5 {[%emt 0:00:00]} 31. Ke3 {[%emt 0:00:48]} Nc2+ {[%emt 0:00:00]} 32. Ke4 {[%emt 0:01:34]} b2 {[%emt 0:00:00]} 33. Rd8+ {[%emt 0:01:05]} Rc8 {[%emt 0:00:00]} 34. Rff8 {[%emt 0:00:00]} Rxd8 {[%emt 0:00:00]} 35. Rxd8+ {[%emt 0:00:00]} Kc7 {[%emt 0:00:00]} 36. Rd1 {[%emt 0:00:00]} Na3 {[%emt 0:00:00]} 37. h4 {[%emt 0:15:57]} b1=Q+ {[%emt 0:00:00]} 38. Rxb1 {[%emt 0:00:00]} Nxb1 {[%emt 0:00:00]} 39. h5 {[%emt 0:01:24]} Nd2+ {[%emt 0:00:00]} 40. Ke3 {[%emt 0:00:00]} Nc4+ {[%emt 0:00:00]} 41. Ke4 {[%emt 0:22:13]} Nd6+ {[%emt 0:00:00]} 42. Kd5 {[%emt 0:00:17]} Kd7 {[%emt 0:00:00]} 43. h6 {[%emt 0:00:21]} Nf7 {[%emt 0:00:00]} 44. h7 {[%emt 0:00:05]} Ke7 {[%emt 0:00:00]} 45. g4 {[%emt 0:00:05]} Kf8 {[%emt 0:00:00]} 46. Ke6 {[%emt 0:03:00]} Kg7 {[%emt 0:00:00]} 47. Ke7 {[%emt 0:00:05]} a5 {[%emt 0:00:00]} 48. g5 {[%emt 0:00:39]} Nxg5 {[%emt 0:00:00]} 0-1

[Event "120th Taflfelag Reykjavik-A 2020"]
[Site "Reykjavik"]
[Date "2020.09.26"]
[Round "6.3"]
[White "Bjornsson, Sigurbjorn"]
[Black "Sigfusson, Sigurdur"]
[Result "1/2-1/2"]
[ECO "C45"]
[WhiteElo "2357"]
[BlackElo "2276"]
[Annotator "ChessBase"]
[PlyCount "39"]
[EventDate "2020.09.13"]
[EventType "tourn"]
[EventCountry "ISL"]
[SourceTitle "playchess.com"]
[Source "ChessBase"]
[SourceQuality "1"]
[TimeControl "40/5400+15:1800+30"]

1. e4 {[%emt 0:03:49]} e5 {[%emt 0:00:00]} 2. Nf3 {[%emt 0:00:00]} Nc6 {[%emt 0:00:00]} 3. d4 {[%emt 0:00:19]} exd4 {[%emt 0:00:00]} 4. Nxd4 {[%emt 0:00:00]} Bc5 {[%emt 0:00:01]} 5. Nxc6 {[%emt 0:00:00]} Qf6 {[%emt 0:01:17]} 6. Qf3 {[%emt 0:00:00]} dxc6 {[%emt 0:04:57]} 7. Nc3 {[%emt 0:00:00]} h5 {[%emt 0:06:00]} 8. Be3 {[%emt 0:03:30]} Bb4 {[%emt 0:26:45]} 9. O-O-O {[%emt 0:05:29]} Qe7 {[%emt 0:07:30]} 10. Qg3 {[%emt 0:19:10]} Bxc3 {[%emt 0:00:59]} 11. bxc3 {[%emt 0:00:00]} Qa3+ {[%emt 0:00:34]} 12. Kd2 {[%emt 0:01:37]} Nf6 {[%emt 0:07:34]} 13. f3 {[%emt 0:04:32]} Be6 {[%emt 0:04:02]} 14. Qxc7 {[%emt 0:15:42]} O-O {[%emt 0:03:20]} 15. Bd3 {[%emt 0:02:35]} Rad8 {[%emt 0:03:13]} 16. Ke2 {[%emt 0:12:11]} Qxc3 {[%emt 0:05:04]} 17. Bd2 {[%emt 0:00:04]} Qc5 {[%emt 0:00:45]} 18. Be3 {[%emt 0:00:18]} Qc3 {[%emt 0:00:14]} 19. Bd2 {[%emt 0:00:37]} Qc5 {[%emt 0:00:00]} 20. Be3 {[%emt 0:01:04]} 1/2-1/2

[Event "120th Taflfelag Reykjavik-A 2020"]
[Site "Reykjavik"]
[Date "2020.09.26"]
[Round "6.4"]
[White "Einarsson, Halldor Gretar"]
[Black "Gretarsson, Helgi Ass"]
[Result "0-1"]
[ECO "D20"]
[WhiteElo "2258"]
[BlackElo "2401"]
[Annotator "ChessBase"]
[PlyCount "78"]
[EventDate "2020.09.13"]
[EventType "tourn"]
[EventCountry "ISL"]
[SourceTitle "playchess.com"]
[Source "ChessBase"]
[SourceQuality "1"]
[TimeControl "40/5400+15:1800+30"]

1. d4 {[%emt 0:00:00]} d5 {[%emt 0:01:20]} 2. c4 {[%emt 0:00:00]} dxc4 {[%emt 0:00:00]} 3. e4 {[%emt 0:00:06]} Nf6 {[%emt 0:01:19]} 4. e5 {[%emt 0:00:00]} Nd5 {[%emt 0:00:00]} 5. Bxc4 {[%emt 0:00:03]} Nb6 {[%emt 0:00:29]} 6. Bd3 {[%emt 0:00:44]} Nc6 {[%emt 0:00:26]} 7. Ne2 {[%emt 0:00:42]} Bg4 {[%emt 0:04:22]} 8. f3 {[%emt 0:00:12]} Be6 {[%emt 0:03:03]} 9. Nbc3 {[%emt 0:08:50]} a6 {[%emt 0:11:57]} 10. b3 {[%emt 0:16:59]} Qd7 {[%emt 0:27:10]} 11. Ne4 {[%emt 0:08:48]} Bd5 {[%emt 0:00:03]} 12. Nc5 {[%emt 0:14:11]} Qc8 {[%emt 0:00:00]} 13. Bd2 {[%emt 0:00:06]} e6 {[%emt 0:00:46]} 14. Rc1 {[%emt 0:00:15]} Nd7 {[%emt 0:00:00]} 15. Ne4 {[%emt 0:01:11]} Ba3 {[%emt 0:00:07]} 16. Rc2 {[%emt 0:02:51]} Qb8 {[%emt 0:12:42]} 17. Kf2 {[%emt 0:09:42]} Qa7 {[%emt 0:07:54]} 18. Be3 {[%emt 0:00:31]} O-O {[%emt 0:00:01]} 19. Qb1 {[%emt 0:04:39]} Rfc8 {[%emt 0:03:03]} 20. h4 {[%emt 0:08:43]} Nb4 {[%emt 0:03:28]} 21. Rd2 {[%emt 0:00:00]} c5 {[%emt 0:00:49]} 22. Ng5 {[%emt 0:05:02]} Nxd3+ {[%emt 0:00:36]} 23. Qxd3 {[%emt 0:00:01]} Nf8 {[%emt 0:00:00]} 24. h5 {[%emt 0:01:34]} h6 {[%emt 0:08:47]} 25. Ne4 {[%emt 0:00:26]} cxd4 {[%emt 0:00:00]} 26. Nxd4 {[%emt 0:02:40]} Qb8 {[%emt 0:00:00]} 27. Rh4 {[%emt 0:01:44]} Qxe5 {[%emt 0:00:47]} 28. Ng3 {[%emt 0:00:32]} Bc1 {[%emt 0:03:17]} 29. Ndf5 {[%emt 0:03:12]} exf5 {[%emt 0:03:33]} 30. Bd4 {[%emt 0:00:00]} Qc7 {[%emt 0:00:50]} 31. Re2 {[%emt 0:02:01]} Bg5 {[%emt 0:00:00]} 32. Rh1 {[%emt 0:00:20]} f4 {[%emt 0:00:06]} 33. Nf5 {[%emt 0:00:41]} Ne6 {[%emt 0:00:00]} 34. Bb2 {[%emt 0:00:28]} Qc5+ {[%emt 0:00:07]} 35. Kf1 {[%emt 0:00:06]} Bc6 {[%emt 0:00:00]} 36. a4 {[%emt 0:00:03]} Rd8 {[%emt 0:00:00]} 37. Qb1 {[%emt 0:00:08]} Rd5 {[%emt 0:00:00]} 38. b4 {[%emt 0:00:40]} Qxb4 {[%emt 0:01:08]} 39. Re4 {[%emt 0:00:00]} Qb3 {[%emt 0:00:07]} 0-1

[Event "120th Taflfelag Reykjavik-A 2020"]
[Site "Reykjavik"]
[Date "2020.09.27"]
[Round "7.1"]
[White "Kjartansson, Gudmundur"]
[Black "Gretarsson, Hjorvar Steinn"]
[Result "1/2-1/2"]
[ECO "E12"]
[WhiteElo "2466"]
[BlackElo "2579"]
[Annotator "ChessBase"]
[PlyCount "127"]
[EventDate "2020.09.13"]
[EventType "tourn"]
[EventCountry "ISL"]
[SourceTitle "playchess.com"]
[Source "ChessBase"]
[SourceQuality "1"]
[TimeControl "40/5400+15:1800+30"]

1. d4 {[%emt 0:00:00]} Nf6 {[%emt 0:03:57]} 2. c4 {[%emt 0:00:00]} e6 {[%emt 0:00:11]} 3. Nf3 {[%emt 0:00:00]} b6 {[%emt 0:00:02]} 4. a3 {[%emt 0:00:00]} Ba6 {[%emt 0:00:57]} 5. Qc2 {[%emt 0:00:00]} Bb7 {[%emt 0:00:42]} 6. Nc3 {[%emt 0:00:00]} c5 {[%emt 0:00:00]} 7. e4 {[%emt 0:00:00]} cxd4 {[%emt 0:00:00]} 8. Nxd4 {[%emt 0:00:00]} Bc5 {[%emt 0:00:00]} 9. Nf3 {[%emt 0:00:00]} Ng4 {[%emt 0:04:17]} 10. Bg5 {[%emt 0:00:00]} f6 {[%emt 0:00:00]} 11. Bh4 {[%emt 0:00:00]} Nc6 {[%emt 0:01:10]} 12. Rd1 {[%emt 0:03:34]} a5 {[%emt 0:14:38]} 13. Be2 {[%emt 0:03:26]} O-O {[%emt 0:03:56]} 14. h3 {[%emt 0:09:26]} Nge5 {[%emt 0:03:49]} 15. Nxe5 {[%emt 0:01:25]} Nxe5 {[%emt 0:00:00]} 16. O-O {[%emt 0:02:00]} Rc8 {[%emt 0:04:55]} 17. Kh1 {[%emt 0:08:00]} Ba6 {[%emt 0:16:39]} 18. Qa4 {[%emt 0:03:36]} g5 {[%emt 0:16:21]} 19. Bg3 {[%emt 0:03:22]} Rf7 {[%emt 0:00:32]} 20. f4 {[%emt 0:05:17]} gxf4 {[%emt 0:00:15]} 21. Bxf4 {[%emt 0:00:00]} Ng6 {[%emt 0:00:17]} 22. Bg3 {[%emt 0:24:30]} Bb7 {[%emt 0:00:08]} 23. Bh5 {[%emt 0:01:49]} Bc6 {[%emt 0:03:31]} 24. Qc2 {[%emt 0:00:35]} Rg7 {[%emt 0:00:31]} 25. Bxg6 {[%emt 0:00:46]} Rxg6 {[%emt 0:00:09]} 26. Bd6 {[%emt 0:00:11]} f5 {[%emt 0:01:40]} 27. b4 {[%emt 0:08:53]} Bxd6 {[%emt 0:00:24]} 28. Rxd6 {[%emt 0:00:00]} axb4 {[%emt 0:04:42]} 29. axb4 {[%emt 0:00:00]} Qc7 {[%emt 0:01:13]} 30. c5 {[%emt 0:08:03]} bxc5 {[%emt 0:00:15]} 31. bxc5 {[%emt 0:00:00]} Rf8 {[%emt 0:03:29]} 32. Qd2 {[%emt 0:03:13]} fxe4 {[%emt 0:03:23]} 33. Rxf8+ {[%emt 0:00:23]} Kxf8 {[%emt 0:00:00]} 34. Qf4+ {[%emt 0:00:41]} Kg8 {[%emt 0:00:49]} 35. Nxe4 {[%emt 0:00:26]} Qd8 {[%emt 0:02:23]} 36. Rd2 {[%emt 0:05:56]} Qf8 {[%emt 0:00:48]} 37. Rf2 {[%emt 0:00:31]} Qxf4 {[%emt 0:00:00]} 38. Rxf4 {[%emt 0:00:00]} e5 {[%emt 0:00:01]} 39. Rh4 {[%emt 0:00:55]} h6 {[%emt 0:00:00]} 40. Rg4 {[%emt 0:00:00]} Kg7 {[%emt 0:00:00]} 41. Rxg6+ {[%emt 0:19:01]} Kxg6 {[%emt 0:15:29]} 42. Nc3 {[%emt 0:02:32]} e4 {[%emt 0:03:04]} 43. Kg1 {[%emt 0:00:57]} e3 {[%emt 0:00:31]} 44. Kf1 {[%emt 0:07:01]} Kf5 {[%emt 0:00:20]} 45. g4+ {[%emt 0:02:22]} Kf4 {[%emt 0:03:00]} 46. Ne2+ {[%emt 0:00:27]} Ke5 {[%emt 0:01:32]} 47. Ng3 {[%emt 0:00:21]} Bb5+ {[%emt 0:00:59]} 48. Ke1 {[%emt 0:00:16]} Bd3 {[%emt 0:00:06]} 49. Nh5 {[%emt 0:01:33]} Bg6 {[%emt 0:00:39]} 50. Ng3 {[%emt 0:00:04]} Bd3 {[%emt 0:04:12]} 51. Nh5 {[%emt 0:00:18]} Bc4 {[%emt 0:02:51]} 52. Ng7 {[%emt 0:01:39]} Kf4 {[%emt 0:00:35]} 53. Nh5+ {[%emt 0:01:57]} Kg5 {[%emt 0:00:47]} 54. Ng7 {[%emt 0:00:42]} Bd3 {[%emt 0:00:39]} 55. Nh5 {[%emt 0:00:35]} Bg6 {[%emt 0:01:15]} 56. Ng3 {[%emt 0:00:01]} Kh4 {[%emt 0:01:32]} 57. Nf1 {[%emt 0:00:23]} Kxh3 {[%emt 0:00:52]} 58. Nxe3 {[%emt 0:00:04]} Kg3 {[%emt 0:00:11]} 59. Nf5+ {[%emt 0:01:18]} Kxg4 {[%emt 0:00:04]} 60. Nxh6+ {[%emt 0:00:04]} Kf4 {[%emt 0:00:30]} 61. Kd2 {[%emt 0:00:18]} Ke5 {[%emt 0:00:27]} 62. Ng4+ {[%emt 0:00:19]} Kd4 {[%emt 0:00:09]} 63. Nf6 {[%emt 0:00:09]} Kxc5 {[%emt 0:00:05]} 64. Nxd7+ {[%emt 0:00:03]} 1/2-1/2